bitfinex/quotes_BTCUSD_20260310
["timestamp","ask_amount","ask_price","bid_price","bid_amount"]
[1773183811329,0.01172952,69807.0,69787.0,0.00453739]
[1773183811500,0.01172952,69807.0,69789.0,0.00453739]
[1773183812501,0.0833563,69807.0,69789.0,0.00453739]
[1773183813750,0.0833563,69807.0,69790.0,0.0716435]
[1773183813891,0.0833563,69807.0,69784.0,0.00453739]
[1773183813892,0.00254408,69806.0,69784.0,0.00453739]
[1773183814133,0.00254408,69806.0,69785.0,0.00144]
[1773183815009,0.00254408,69806.0,69785.0,0.00155215]
[1773183815209,0.00254408,69805.0,69785.0,0.00155215]
[1773183815511,0.00254408,69805.0,69786.0,0.00453739]
[1773183815889,0.00254408,69803.0,69787.0,0.07164658]
[1773183816097,0.00398408,69802.0,69787.0,0.07164658]
[1773183816855,0.00254408,69801.0,69787.0,0.00144]
[1773183818057,0.07163323,69800.0,69787.0,0.07308599]
[1773183818376,0.07145159,69800.0,69787.0,0.07308599]
[1773183824750,0.11443735,69795.0,69760.0,0.00562]
[1773183824956,0.00254408,69779.0,69760.0,0.00562]
[1773183825169,0.00254408,69769.0,69753.0,1e-08]
[1773183825361,0.00254408,69769.0,69740.0,0.07169417]
[1773183825362,0.00254408,69761.0,69743.0,0.0721714]
[1773183825567,0.05476625,69762.0,69743.0,0.0721714]
[1773183825568,0.00398408,69760.0,69746.0,0.07188846]
[1773183825749,0.13990912,69768.0,69746.0,0.07188846]
[1773183825750,0.14279532,69767.0,69747.0,0.00453739]
[1773183825955,0.00144,69762.0,69747.0,0.00453739]
[1773183826284,0.00144,69762.0,69746.0,0.00473739]
[1773183826285,0.07167328,69761.0,69746.0,0.00473739]
[1773183826456,0.07167328,69761.0,69746.0,0.07188869]
[1773183826457,0.00254408,69760.0,69746.0,0.07188869]
[1773183826808,0.00254408,69760.0,69746.0,0.0002]
[1773183827576,0.00254408,69759.0,69746.0,0.0002]
[1773183827777,0.00254408,69759.0,69746.0,0.07188866]
[1773183827934,0.00254408,69759.0,69746.0,0.07188816]
[1773183828494,0.07167636,69758.0,69746.0,0.0002]
[1773183828784,0.00144,69764.0,69747.0,0.00499999]
[1773183828921,0.001,69759.0,69747.0,0.00499999]
[1773183829126,0.00144,69764.0,69747.0,0.00499999]
[1773183829348,0.09713888,69768.0,69747.0,0.00499999]
[1773183829763,0.02547177,69768.0,69747.0,0.00511219]
[1773183829956,0.01773219,69767.0,69747.0,0.00511219]
[1773183830165,0.00144,69777.0,69753.0,0.0716815]
[1773183830386,0.00144,69777.0,69755.0,0.00499999]
[1773183830963,0.01207939,69780.0,69755.0,0.00499999]
[1773183831198,0.00144,69779.0,69755.0,0.00499999]
[1773183831583,0.00144,69778.0,69755.0,0.00599999]
[1773183831787,0.00144,69778.0,69755.0,0.00499999]
[1773183831988,0.01351939,69780.0,69755.0,0.00499999]
[1773183832189,0.01351939,69780.0,69754.0,0.00144]
[1773183832190,0.01207939,69780.0,69762.0,0.07167225]
[1773183832554,0.01207939,69780.0,69764.0,0.00499999]
[1773183835312,0.08373343,69780.0,69766.0,0.00499999]
[1773183835508,0.01207939,69780.0,69766.0,0.00499999]
[1773183836827,0.0122994,69780.0,69766.0,0.00499999]
[1773183837226,0.0122994,69780.0,69767.0,0.07166712]
[1773183837429,0.08395333,69780.0,69767.0,0.00144]
[1773183837636,0.08395333,69780.0,69767.0,0.00643999]
[1773183837841,0.0122994,69780.0,69768.0,0.00499999]
[1773183838258,0.08395333,69780.0,69768.0,0.00499999]
[1773183839098,0.0840653,69780.0,69768.0,0.00499999]
[1773183839476,0.0840653,69780.0,69769.0,0.07166506]
[1773183840080,0.0840653,69780.0,69769.0,0.07666505]
[1773183840786,0.0840653,69780.0,69767.0,0.07166506]
[1773183840991,0.00460245,69779.0,69767.0,0.07166506]
[1773183841541,0.00460245,69777.0,69765.0,0.07166712]
[1773183842470,0.00460245,69777.0,69764.0,0.0731102]
[1773183843278,0.07165535,69779.0,69764.0,0.0731102]
[1773183843521,0.08406616,69780.0,69766.0,0.07166814]
[1773183843655,0.08406616,69780.0,69767.0,0.00459427]
[1773183845566,0.08406616,69780.0,69768.0,0.07166609]
[1773183845876,0.08406616,69780.0,69768.0,0.07626036]
[1773183847733,0.01241137,69780.0,69767.0,0.00459427]
[1773183847930,0.0840652,69780.0,69767.0,0.00459427]
[1773183849724,0.01241137,69780.0,69768.0,0.07166609]
[1773183849924,0.01241137,69780.0,69769.0,0.00459427]
[1773183851484,0.00033198,69780.0,69769.0,0.00459427]
[1773183852172,0.00033198,69780.0,69770.0,0.07166403]
[1773183852942,0.00033198,69780.0,69771.0,0.00459427]
[1773183854354,0.00033198,69780.0,69771.0,0.07625648]
[1773183855215,0.14265146,69784.0,69772.0,0.00459427]
[1773183855514,0.00144,69786.0,69772.0,0.00470624]
[1773183855652,0.00022001,69787.0,69772.0,0.00470624]
[1773183855857,0.00604245,69786.0,69772.0,0.00470624]
[1773183856060,0.00604245,69786.0,69772.0,0.00614624]
[1773183856671,0.07769068,69786.0,69773.0,0.07166095]
[1773183857106,0.00166001,69786.0,69774.0,0.00459427]
[1773183857316,0.0733084,69786.0,69774.0,0.00459427]
[1773183858212,0.14265146,69785.0,69774.0,0.00459427]
[1773183859218,0.25671919,69784.0,69775.0,0.0716589]
[1773183859401,0.14265146,69783.0,69774.0,0.0762535]
[1773183859647,0.14265146,69782.0,69774.0,0.0762535]
[1773183859845,0.11406773,69784.0,69774.0,0.0762535]
[1773183859846,0.14265146,69781.0,69774.0,0.0762535]
[1773183860050,0.14265146,69783.0,69774.0,0.0762535]
[1773183860296,0.14265146,69782.0,69774.0,0.0762535]
[1773183860597,0.14265146,69781.0,69774.0,0.0762535]
[1773183860748,0.14265146,69780.0,69774.0,0.0762535]
[1773183860950,0.14265146,69779.0,69774.0,0.0762535]
[1773183861181,0.14265146,69782.0,69774.0,0.0762535]
[1773183861384,0.14265146,69781.0,69774.0,0.0762535]
[1773183861585,0.14265146,69780.0,69774.0,0.0762535]
[1773183861811,0.14265146,69779.0,69774.0,0.0762535]
[1773183862094,0.0001131,69782.0,69766.0,0.07166787]
[1773183862095,0.00469703,69777.0,69766.0,0.07166787]
[1773183862301,0.14265146,69776.0,69765.0,0.07166893]
[1773183862522,0.11406773,69774.0,69756.0,0.00144]
[1773183862680,0.11406773,69771.0,69753.0,0.0002]
[1773183862899,0.00469703,69766.0,69753.0,0.0002]
[1773183863070,0.00469703,69764.0,69753.0,0.0002]
[1773183863286,0.14169276,69766.0,69757.0,0.004979]
[1773183863503,0.11406773,69770.0,69757.0,0.004979]
[1773183864376,0.00144,69770.0,69757.0,0.006979]
[1773183865409,0.00144,69770.0,69759.0,0.004979]
[1773183866475,0.00144,69770.0,69761.0,0.004979]
[1773183866684,0.00144,69770.0,69756.0,0.0002]
[1773183866685,0.07310488,69770.0,69756.0,0.0002]
[1773183866853,0.00469703,69769.0,69756.0,0.0002]
[1773183867276,0.00469703,69769.0,69756.0,0.07187827]
[1773183867478,0.00469703,69767.0,69756.0,0.0002]
[1773183869162,0.00469703,69767.0,69756.0,4.864e-05]
[1773183869367,0.07166814,69766.0,69756.0,4.864e-05]
[1773183869587,0.00469703,69765.0,69741.0,0.004979]
[1773183869794,0.00469703,69764.0,69743.0,0.07217144]
[1773183870054,0.00469703,69762.0,69744.0,0.004979]
[1773183870271,0.11876476,69762.0,69744.0,0.004979]
[1773183870444,0.00469703,69762.0,69744.0,0.004979]
[1773183871461,0.00469703,69760.0,69745.0,0.07168972]
[1773183871687,0.00469703,69760.0,69745.0,0.07153837]
[1773183872802,0.00469703,69760.0,69746.0,0.004979]
[1773183874253,0.00469703,69760.0,69747.0,0.07168767]
[1773183874632,0.07311217,69763.0,69748.0,0.004979]
[1773183877246,0.07311217,69763.0,69748.0,0.07666481]
[1773183877973,0.07311217,69763.0,69748.0,0.07651346]
[1773183881396,0.07311217,69763.0,69744.0,0.0002]
[1773183881600,0.00469703,69762.0,69744.0,0.0002]
[1773183881794,0.00469703,69762.0,69744.0,0.005179]
[1773183882234,0.00469703,69762.0,69746.0,0.004979]
[1773183883124,0.00144,69761.0,69746.0,0.004979]
[1773183883555,0.00144,69760.0,69747.0,0.07168767]
[1773183883800,0.00144,69760.0,69748.0,0.004979]
[1773183883971,0.00469703,69768.0,69748.0,0.004979]
[1773183884124,0.00469703,69768.0,69749.0,0.00144]
[1773183884519,0.00469703,69768.0,69749.0,0.006419]
[1773183885881,0.00469703,69766.0,69750.0,0.07312458]
[1773183886280,0.00469703,69766.0,69750.0,0.07168458]
[1773183886481,0.00469703,69766.0,69750.0,0.07312458]
[1773183887270,0.00469703,69766.0,69750.0,0.07168458]
[1773183887430,0.00469703,69766.0,69750.0,0.07312458]
[1773183887797,0.00469703,69766.0,69750.0,0.07168458]
[1773183888005,0.00469703,69766.0,69750.0,0.07312458]
[1773183888299,0.00469703,69766.0,69750.0,0.07168458]
[1773183888506,0.00469703,69766.0,69750.0,0.07312458]
[1773183889312,0.00469703,69766.0,69750.0,0.07168458]
[1773183889495,0.00469703,69766.0,69751.0,0.00491473]
[1773183889922,0.00469703,69766.0,69752.0,0.07168253]
[1773183890342,0.07166628,69768.0,69753.0,0.00491473]
[1773183891540,0.00022001,69766.0,69753.0,0.00491473]
[1773183891984,0.07188824,69766.0,69753.0,0.00491473]
[1773183892149,0.00457261,69765.0,69751.0,0.07332303]
[1773183892562,0.00457261,69765.0,69751.0,0.07188303]
[1773183892759,0.00457261,69765.0,69751.0,0.07332303]
[1773183893911,0.11406773,69764.0,69751.0,0.07823776]
[1773183895134,0.00144,69763.0,69751.0,0.07823776]
[1773183895892,0.14462826,69763.0,69751.0,0.07823776]
[1773183897265,0.14318826,69762.0,69751.0,0.07823776]
[1773183897599,0.00166001,69766.0,69753.0,0.08887588]
[1773183897787,0.00166001,69766.0,69754.0,0.00491473]
[1773183898673,0.0733286,69766.0,69754.0,0.00491473]
[1773183899767,0.0733286,69766.0,69754.0,0.0765952]
[1773183899974,0.00166001,69766.0,69754.0,0.0765952]
[1773183900356,0.00166001,69766.0,69755.0,0.00491473]
[1773183900760,0.00022001,69766.0,69755.0,0.00491473]
[1773183900951,0.00166001,69766.0,69755.0,0.00491473]
[1773183901706,0.07332816,69766.0,69755.0,0.00491473]
[1773183901912,0.07188816,69766.0,69755.0,0.00491473]
[1773183902356,0.00022001,69766.0,69755.0,0.00491473]
[1773183902687,0.00022001,69766.0,69755.0,0.07659398]
[1773183903109,0.07188843,69766.0,69755.0,0.00491473]
[1773183903986,0.07332843,69766.0,69755.0,0.00491473]
[1773183904702,0.00166001,69766.0,69755.0,0.00491473]
[1773183905342,0.0733282,69766.0,69755.0,0.00491473]
[1773183905527,0.00166001,69766.0,69755.0,0.00491473]
[1773183906192,0.00023,69775.0,69756.0,0.05482215]
[1773183906417,0.08464809,69775.0,69756.0,0.00491473]
[1773183906628,0.08464809,69775.0,69758.0,0.00491473]
[1773183906830,0.07166094,69774.0,69758.0,0.00491473]
[1773183907002,0.0764536,69773.0,69759.0,0.00144]
[1773183907315,0.00457261,69772.0,69759.0,0.00144]
[1773183907700,0.00022001,69766.0,69759.0,0.00144]
[1773183908965,0.00022001,69766.0,69755.0,0.0726891]
[1773183908966,0.00457261,69765.0,69748.0,0.00491473]
[1773183909168,0.05482215,69761.0,69749.0,0.00144]
[1773183909331,0.00457261,69760.0,69749.0,0.00144]
[1773183910017,0.00457261,69760.0,69759.0,0.001]
[1773183910220,0.00457261,69760.0,69748.0,0.07168656]
[1773183910957,0.00457261,69760.0,69748.0,0.07168622]
[1773183911103,0.07311392,69761.0,69748.0,0.07660095]
[1773183913698,0.00144,69761.0,69748.0,0.07168622]
[1773183913933,0.00022001,69766.0,69752.0,0.00491473]
[1773183914141,0.00144,69764.0,69752.0,0.00491473]
[1773183915061,0.14322748,69769.0,69752.0,0.00491473]
[1773183915214,0.14322748,69772.0,69754.0,0.00491473]
[1773183915415,0.00022001,69773.0,69754.0,0.00491473]
[1773183915744,0.14344749,69773.0,69755.0,0.07167944]
[1773183915968,0.01298917,69775.0,69756.0,0.00491473]
[1773183916240,0.00155211,69777.0,69756.0,0.00491473]
[1773183916646,0.00011211,69777.0,69761.0,0.00491473]
[1773183916786,0.00011211,69777.0,69760.0,0.05482215]
[1773183916787,0.00123001,69780.0,69763.0,0.00491473]
[1773183916987,0.00123001,69780.0,69763.0,0.00502684]
[1773183917857,0.00123001,69780.0,69764.0,0.0716702]
[1773183918000,0.00123001,69780.0,69765.0,0.00491473]
[1773183919225,0.00022001,69787.0,69774.0,0.05482215]
[1773183919582,0.00022001,69793.0,69776.0,0.00466563]
[1773183919717,0.01292745,69799.0,69778.0,0.00466563]
[1773183919948,0.01292745,69799.0,69781.0,0.0947905]
[1773183920153,0.01292745,69799.0,69782.0,0.00466563]
[1773183921203,0.00022001,69784.0,69782.0,0.00466563]
[1773183921418,0.07185774,69796.0,69781.0,0.001]
[1773183921746,0.00508295,69791.0,69777.0,0.00144]
[1773183921876,0.05482215,69790.0,69777.0,0.00144]
[1773183922233,0.05968509,69790.0,69776.0,0.00610563]
[1773183922583,0.00022001,69791.0,69777.0,0.00466563]
[1773183923124,0.00022001,69791.0,69782.0,0.001]
[1773183923487,0.00022001,69791.0,69781.0,0.00466563]
[1773183923888,0.00022001,69791.0,69776.0,0.00144]
[1773183923889,0.05504216,69791.0,69777.0,0.07165684]
[1773183924143,0.05091219,69791.0,69777.0,0.07165684]
[1773183924348,0.00486294,69794.0,69778.0,0.00466563]
[1773183925345,0.07163977,69794.0,69778.0,0.00466563]
[1773183927151,0.07163977,69794.0,69779.0,0.07632042]
[1773183928202,0.07163977,69794.0,69781.0,0.0002]
[1773183929078,0.00486294,69790.0,69774.0,0.0002]
[1773183929446,0.00486294,69788.0,69774.0,0.0002]
[1773183929698,0.00486294,69788.0,69771.0,0.01829583]
[1773183930201,0.00486294,69788.0,69769.0,0.00466563]
[1773183930506,0.05968509,69781.0,69768.0,0.00144]
[1773183930798,0.00144,69782.0,69769.0,0.07633069]
[1773183930949,0.00144,69782.0,69770.0,0.00466563]
[1773183931389,0.00144,69784.0,69771.0,0.00466563]
[1773183931599,0.00144,69785.0,69771.0,0.00466563]
[1773183931953,0.07164358,69790.0,69771.0,0.00466563]
[1773183932151,0.00144,69789.0,69771.0,0.00466563]
[1773183932772,0.00144,69791.0,69773.0,0.00466563]
[1773183933375,0.00144,69790.0,69775.0,0.00466563]
[1773183935455,0.07308438,69790.0,69775.0,0.07165816]
[1773183935631,0.07308438,69790.0,69776.0,0.00466563]
[1773183936298,0.00144,69790.0,69776.0,0.00466563]
[1773183937488,0.00144,69790.0,69777.0,0.00144]
[1773183939610,0.00144,69790.0,69778.0,0.07165582]
[1773183940484,0.00144,69790.0,69777.0,0.00144]
[1773183940661,0.00486294,69789.0,69777.0,0.00144]
[1773183940900,0.00144,69790.0,69778.0,0.07165582]
[1773183942351,0.00166001,69790.0,69778.0,0.07165582]
[1773183943920,0.00166001,69790.0,69778.0,0.07632145]
[1773183946635,0.00166001,69790.0,69778.0,0.07165582]
[1773183946954,0.00166001,69790.0,69778.0,0.07632145]
[1773183947747,0.00166001,69790.0,69778.0,0.07165582]
[1773183947944,0.00022001,69796.0,69779.0,0.00461104]
[1773183948145,0.00022001,69796.0,69781.0,0.00461104]
[1773183948373,0.00022001,69796.0,69783.0,0.00461104]
[1773183948722,0.00022001,69796.0,69785.0,0.00461104]
[1773183949400,0.00022001,69796.0,69787.0,0.00461104]
[1773183949563,0.0001776,69802.0,69787.0,0.00461104]
[1773183949564,0.00022001,69806.0,69787.0,0.00461104]
[1773183949909,0.00033216,69803.0,69787.0,0.00461104]
[1773183951171,0.00033216,69803.0,69788.0,0.07164555]
[1773183951381,0.00033216,69803.0,69789.0,0.00481117]
[1773183951597,0.00033216,69803.0,69791.0,0.00481117]
[1773183953216,0.00033216,69803.0,69792.0,0.07164144]
[1773183953420,0.00033216,69803.0,69793.0,0.00481117]
[1773183957287,0.00033216,69803.0,69793.0,0.07645088]
[1773183957696,0.00033216,69803.0,69794.0,0.00481117]
[1773183959577,0.00033216,69803.0,69794.0,0.07645009]
[1773183959983,0.00033216,69803.0,69794.0,0.00481117]
[1773183960213,0.00033216,69803.0,69792.0,0.07164141]
[1773183961015,0.00033216,69803.0,69793.0,0.00481117]
[1773183963745,0.00033216,69803.0,69793.0,0.07645145]
[1773183963946,0.00476871,69801.0,69785.0,0.00144]
[1773183964268,0.00476871,69801.0,69778.0,0.07185479]
[1773183964269,0.00476871,69794.0,69778.0,0.0002]
[1773183964574,0.00476871,69789.0,69778.0,0.0002]
[1773183965888,0.07308119,69793.0,69779.0,0.00481117]
[1773183967386,0.07408119,69793.0,69779.0,0.00481117]
[1773183967711,0.07308119,69793.0,69779.0,0.00481117]
[1773183973696,0.07308119,69793.0,69779.0,0.07646538]
[1773183973898,0.07308119,69793.0,69779.0,0.00481117]
[1773183974136,0.00144,69793.0,69781.0,0.00481117]
[1773183974935,0.07163748,69796.0,69781.0,0.00481117]
[1773183975171,0.00144,69794.0,69781.0,0.00481117]
[1773183975522,0.00620871,69794.0,69780.0,0.00144]
[1773183975724,0.00476871,69793.0,69780.0,0.00144]
[1773183976274,0.07164144,69792.0,69790.0,0.0041302]
[1773183976493,0.07641015,69792.0,69780.0,0.00144]
[1773183976857,0.07641015,69792.0,69780.0,0.07309328]
[1773183976858,0.00476871,69792.0,69780.0,0.07309328]
[1773183977545,0.07307999,69794.0,69780.0,0.07790445]
[1773183978643,0.07307999,69794.0,69780.0,0.00625117]
[1773183978849,0.00476871,69793.0,69780.0,0.00144]
[1773183980586,0.07640993,69793.0,69780.0,0.00164]
[1773183980795,0.00482069,69792.0,69780.0,0.00164]
[1773183982719,0.07164247,69791.0,69780.0,0.00164]
[1773183982910,0.00482069,69789.0,69772.0,0.0002196]
[1773183983117,0.00482069,69789.0,69772.0,0.0016596]
[1773183983278,0.05957429,69783.0,69772.0,0.0002196]
[1773183983476,0.00482069,69783.0,69772.0,0.0002196]
[1773183983681,0.00482069,69783.0,69767.0,0.00164]
[1773183983682,0.00144,69782.0,69767.0,0.00164]
[1773183983899,0.00482069,69781.0,69767.0,0.00164]
[1773183984700,0.07164452,69789.0,69767.0,0.07330681]
[1773183984885,0.00144,69788.0,69768.0,0.00458986]
[1773183985416,0.00144,69787.0,69768.0,0.00458986]
[1773183985818,0.00144,69786.0,69768.0,0.00443856]
[1773183986780,0.07164863,69785.0,69769.0,0.07166506]
[1773183986982,0.07164863,69785.0,69770.0,0.00458986]
[1773183987455,0.00482069,69786.0,69770.0,0.00458986]
[1773183987636,0.00626069,69786.0,69770.0,0.00458986]
[1773183987933,0.07790831,69786.0,69770.0,0.00458986]
[1773183988140,0.00144,69786.0,69770.0,0.00443859]
[1773183988775,0.00144,69793.0,69771.0,0.00458986]
[1773183988951,0.07308052,69793.0,69773.0,0.00458986]
[1773183989170,0.07164052,69793.0,69775.0,0.00458986]
[1773183989326,0.07308052,69793.0,69775.0,0.00458986]
[1773183991131,0.07308052,69793.0,69776.0,0.07135532]
[1773183991330,0.07308052,69793.0,69777.0,0.00458986]
[1773183991593,0.07308052,69793.0,69777.0,0.00428735]
[1773183991750,0.07308052,69793.0,69777.0,0.00398484]
[1773183993170,0.07308052,69793.0,69778.0,0.07165582]
[1773183993393,0.00482069,69789.0,69770.0,0.0002]
[1773183993584,0.05957429,69780.0,69770.0,0.0002]
[1773183994470,0.05957429,69780.0,69768.0,0.00101]
[1773183994692,0.00482069,69779.0,69763.0,0.0002]
[1773183994894,0.0547536,69773.0,69763.0,0.0002]
[1773183995103,0.00482069,69772.0,69763.0,0.0002]
[1773183995590,0.00144,69774.0,69763.0,0.0002]
[1773183995727,0.00144,69774.0,69763.0,0.00478986]
[1773183996606,0.0731001,69774.0,69763.0,0.00478986]
[1773183997632,0.00144,69774.0,69763.0,0.00478986]
[1773183997869,0.07310007,69774.0,69763.0,0.00478986]
[1773183999928,0.00144,69774.0,69763.0,0.07187104]
[1773184000132,0.00144,69774.0,69764.0,0.00458986]
[1773184001723,0.07310009,69774.0,69764.0,0.00458986]
[1773184002820,0.00482069,69773.0,69763.0,0.0002]
[1773184003050,0.00482069,69773.0,69760.0,0.07729413]
[1773184003253,0.00482069,69772.0,69760.0,0.07729413]
[1773184004779,0.0547536,69780.0,69761.0,0.00458986]
[1773184004780,0.07176726,69779.0,69761.0,0.00458986]
[1773184004969,0.07320726,69779.0,69761.0,0.00458986]
[1773184005343,0.00144,69778.0,69761.0,0.00458986]
[1773184008291,0.07309625,69778.0,69763.0,0.00496924]
[1773184010611,0.07176726,69779.0,69769.0,0.00472726]
[1773184010612,0.00011211,69779.0,69769.0,0.00472726]
[1773184010778,0.21460427,69786.0,69771.0,0.00472726]
[1773184010978,0.14295628,69785.0,69771.0,0.00483937]
[1773184011511,0.07308799,69786.0,69771.0,0.00483937]
[1773184011915,0.07308799,69786.0,69771.0,0.00493657]
[1773184012768,0.07164799,69786.0,69772.0,0.07166198]
[1773184012983,0.07308799,69786.0,69772.0,0.07135951]
[1773184013871,0.07649241,69786.0,69772.0,0.07145671]
[1773184014046,0.07308891,69785.0,69772.0,0.07145671]
[1773184015691,0.07164891,69785.0,69772.0,0.07145671]
[1773184015847,0.07308891,69785.0,69772.0,0.07145671]
[1773184016665,0.07164891,69785.0,69772.0,0.07145671]
[1773184016877,0.07308891,69785.0,69772.0,0.07145671]
[1773184018122,0.00015143,69784.0,69772.0,0.07145671]
[1773184019278,0.00015143,69784.0,69773.0,0.00472726]
[1773184019930,0.00015143,69784.0,69773.0,0.00482446]
[1773184020283,0.00015143,69784.0,69774.0,0.07165993]
[1773184020681,0.11430613,69791.0,69775.0,0.00472726]
[1773184020936,0.07186045,69793.0,69775.0,0.00472726]
[1773184021100,0.00101,69790.0,69775.0,0.00472726]
[1773184021834,0.00101,69790.0,69777.0,0.00472726]
[1773184023123,0.00101,69790.0,69778.0,0.07165582]
[1773184024533,0.00101,69790.0,69779.0,0.00472726]
[1773184025952,0.00101,69790.0,69780.0,0.07165376]
[1773184026881,0.00101,69790.0,69781.0,0.00472726]
[1773184027583,0.07186119,69793.0,69779.0,0.07165458]
[1773184027743,0.07186119,69793.0,69777.0,0.07165376]
[1773184027744,0.00484442,69790.0,69780.0,0.00144]
[1773184027942,0.00484442,69790.0,69780.0,0.07309305]
[1773184028143,0.00484442,69790.0,69780.0,0.07165305]
[1773184028741,0.00484442,69790.0,69780.0,0.00144]
[1773184029146,0.00484442,69790.0,69777.0,0.07165376]
[1773184029393,0.00484442,69790.0,69778.0,0.00144]
[1773184029596,0.00484442,69789.0,69777.0,0.00144]
[1773184029742,0.00484442,69789.0,69762.0,0.07167187]
[1773184029944,0.00484442,69779.0,69765.0,0.07182595]
[1773184030168,0.00494084,69779.0,69765.0,0.07326595]
[1773184032251,0.07650024,69778.0,69765.0,0.07326595]
[1773184034367,9.642e-05,69779.0,69768.0,0.05478541]
[1773184034604,9.642e-05,69779.0,69769.0,0.00472726]
[1773184036903,9.642e-05,69779.0,69771.0,0.00472726]
[1773184037103,0.14303693,69788.0,69770.0,0.07166403]
[1773184037104,0.00144,69787.0,69773.0,0.00472726]
[1773184037327,0.21974507,69790.0,69773.0,0.00472726]
[1773184037550,0.14303693,69789.0,69773.0,0.00472726]
[1773184037710,0.00506443,69790.0,69773.0,0.00472726]
[1773184037910,0.00144,69789.0,69773.0,0.00472726]
[1773184038311,0.00022001,69790.0,69773.0,0.00472726]
[1773184038813,0.00506443,69790.0,69775.0,0.0716589]
[1773184043654,0.00506443,69790.0,69775.0,0.0718589]
[1773184044232,0.00481257,69789.0,69775.0,0.0718589]
[1773184044462,0.00481257,69789.0,69773.0,0.07310059]
[1773184045135,0.00481257,69789.0,69773.0,0.07166059]
[1773184045345,0.00481257,69789.0,69773.0,0.07310059]
[1773184045808,0.00481257,69789.0,69769.0,0.07166416]
[1773184045809,0.07164555,69788.0,69769.0,0.07166416]
[1773184045992,0.00481257,69787.0,69769.0,0.07176058]
[1773184046239,0.00481257,69787.0,69769.0,0.07320058]
[1773184046647,0.00481257,69787.0,69769.0,0.07176058]
[1773184046852,0.00481257,69787.0,69770.0,0.00144]
[1773184049164,0.00481257,69787.0,69771.0,0.07166301]
[1773184049388,0.00481257,69786.0,69771.0,0.07166301]
[1773184051649,0.00481257,69786.0,69772.0,0.00460661]
[1773184053319,0.00503258,69786.0,69773.0,0.07166095]
[1773184054867,0.00503258,69786.0,69773.0,0.06198762]
[1773184055449,0.00144,69785.0,69773.0,0.06198762]
[1773184057042,0.00481257,69782.0,69760.0,0.00562]
[1773184057343,0.00481257,69780.0,69765.0,0.07182604]
[1773184057545,0.00144,69779.0,69765.0,0.0001569]
[1773184057746,0.00481257,69778.0,69765.0,0.0001569]
[1773184057951,0.00481257,69778.0,69765.0,0.07182574]
[1773184058132,0.00481257,69776.0,69765.0,0.0001569]
[1773184060840,0.00481257,69776.0,69765.0,0.07202554]
[1773184061245,0.00481257,69774.0,69765.0,0.0003569]
[1773184061426,0.00481257,69774.0,69761.0,0.0002]
[1773184061629,0.00481257,69770.0,69761.0,0.0002]
[1773184061830,0.00144,69769.0,69761.0,0.0002]
[1773184062253,0.00625257,69769.0,69761.0,0.0002]
[1773184063330,0.0779185,69769.0,69761.0,0.0002]
[1773184063550,0.07310593,69769.0,69761.0,0.0002]
[1773184063772,0.00481257,69768.0,69754.0,0.0002]
[1773184064734,0.00481257,69768.0,69754.0,0.07188023]
[1773184065158,0.07310593,69769.0,69754.0,0.07188023]
[1773184065159,0.07166712,69767.0,69754.0,0.07188023]
[1773184065358,0.00144,69768.0,69758.0,0.00460661]
[1773184065615,0.00144,69770.0,69758.0,0.00460661]
[1773184066101,0.00144,69770.0,69756.0,0.07167842]
[1773184066302,0.00625257,69770.0,69756.0,0.07167842]
[1773184067296,0.00625257,69770.0,69756.0,0.07311842]
[1773184067818,0.07791671,69770.0,69756.0,0.07311842]
[1773184068011,0.00487963,69769.0,69756.0,0.07311842]
[1773184068559,0.00487963,69769.0,69756.0,0.07331842]
[1773184070061,0.00487963,69769.0,69756.0,0.07316716]
[1773184073461,0.00487963,69769.0,69756.0,0.07271345]
[1773184076842,0.00487963,69769.0,69756.0,0.07256221]
[1773184077026,0.00474106,69767.0,69754.0,0.0002]
[1773184077480,0.00474106,69765.0,69754.0,0.0002]
[1773184077676,0.07166814,69766.0,69754.0,0.0002]
[1773184077677,0.00144,69764.0,69754.0,0.0002]
[1773184078098,0.00618106,69764.0,69754.0,0.0002]
[1773184078597,0.00660976,69764.0,69754.0,0.0002]
[1773184079621,0.00660976,69764.0,69754.0,0.00121]
[1773184080825,0.0018687,69764.0,69754.0,0.00603037]
[1773184081568,0.0018687,69764.0,69755.0,0.07167944]
[1773184081766,0.0018687,69764.0,69754.0,0.07289043]
[1773184083418,0.00474106,69761.0,69750.0,0.00043]
[1773184083621,0.00474106,69760.0,69750.0,0.00043]
[1773184084604,0.00502206,69760.0,69750.0,0.00043]
[1773184085930,0.00502206,69760.0,69750.0,0.0721142]
[1773184086611,0.00502206,69760.0,69719.0,0.52854228]
[1773184086612,0.00474106,69758.0,69743.0,0.00048]
[1773184086836,0.00474106,69758.0,69743.0,0.0001122]
[1773184087246,0.00144,69757.0,69743.0,0.0001122]
[1773184087468,0.00474106,69756.0,69743.0,0.0001122]
[1773184087680,0.00502206,69756.0,69743.0,0.0001122]
[1773184087900,0.00474106,69754.0,69743.0,0.0001122]
[1773184088335,0.000281,69756.0,69743.0,0.0001122]
[1773184088560,0.00144,69755.0,69744.0,0.00430952]
[1773184088702,0.000281,69756.0,69744.0,0.00430952]
[1773184089518,0.000281,69756.0,69750.0,0.0002]
[1773184094064,0.07195978,69756.0,69750.0,0.0002]
[1773184094226,0.00474106,69755.0,69743.0,0.07344323]
[1773184094736,0.00502206,69755.0,69743.0,0.07344323]
[1773184095360,0.05481901,69753.0,69736.0,0.0002]
[1773184095576,0.0074868,69743.0,69731.0,0.00430952]
[1773184095884,0.0001333,69746.0,69733.0,0.00430952]
[1773184096086,0.0001333,69746.0,69734.0,0.07601055]
[1773184096302,0.07168364,69751.0,69734.0,0.07170103]
[1773184096488,0.00011207,69753.0,69750.0,0.0002]
[1773184097336,0.00618106,69759.0,69750.0,0.0002]
[1773184097536,0.00706,69760.0,69750.0,0.0002]
[1773184097769,0.00562,69760.0,69750.0,0.0002]
[1773184099765,0.00486004,69759.0,69750.0,0.0002]
[1773184102195,0.00486004,69759.0,69750.0,4.877e-05]
[1773184103860,0.07167585,69759.0,69750.0,4.877e-05]
[1773184104066,0.00486004,69758.0,69750.0,4.877e-05]
[1773184104272,0.00562,69760.0,69744.0,0.07313062]
[1773184104469,0.00562,69760.0,69745.0,0.00430952]
[1773184104678,0.0772948,69760.0,69745.0,0.00430952]
[1773184104917,0.08215484,69760.0,69744.0,0.00430952]
[1773184105099,0.08215484,69760.0,69745.0,0.07599924]
[1773184105964,0.0772948,69760.0,69745.0,0.07599924]
[1773184106177,0.00486004,69759.0,69746.0,0.00144]
[1773184106776,0.00630004,69759.0,69746.0,0.00144]
[1773184107477,0.00022001,69764.0,69750.0,0.00430952]
[1773184107684,0.00036771,69770.0,69747.0,0.07168767]
[1773184107685,0.00036771,69770.0,69755.0,0.00430952]
[1773184107886,0.00036771,69770.0,69760.0,0.05481901]
[1773184108805,0.00180771,69770.0,69760.0,0.05481901]
[1773184109294,0.00180771,69770.0,69757.0,0.00144]